fUSD/lending_fUSD_20251210
["ID","MTS","AMOUNT","RATE_DAILY","PERIOD"]
[398061445,1765345849062,-500.0,0.00014984,2]
[398061446,1765345849071,-500.0,0.00014984,2]
[398061447,1765345849080,-500.0,0.00014984,2]
[398061448,1765345849090,-500.0,0.00014984,2]
[398061449,1765345849102,-500.0,0.00014984,2]
[398061450,1765345849111,-500.0,0.00014984,2]
[398061451,1765345849121,-500.0,0.00014984,2]
[398061452,1765345849132,-500.0,0.00014984,2]
[398061453,1765345849142,-500.0,0.00014984,2]
[398061454,1765345849151,-500.0,0.00014984,2]
[398061455,1765345849161,-500.0,0.00014984,2]
[398061456,1765345849170,-500.0,0.00014984,2]
[398061457,1765345849179,-500.0,0.00014984,2]
[398061458,1765345849188,-500.0,0.00014984,2]
[398061459,1765345849199,-500.0,0.00014984,2]
[398061460,1765345849209,-500.0,0.00014984,2]
[398061461,1765345849218,-500.0,0.00014984,2]
[398061462,1765345849227,-500.0,0.00014984,2]
[398061463,1765345849237,-500.0,0.00014984,2]
[398061464,1765345849246,-500.0,0.00014984,2]
[398061465,1765345849255,-502.35671166,0.00014984,2]
[398061466,1765345849265,-500.0,0.00014984,2]
[398061467,1765345849274,-500.0,0.00014984,2]
[398061468,1765345849284,-500.0,0.00014984,2]
[398061469,1765345849293,-500.0,0.00014984,2]
[398061470,1765345849303,-500.0,0.00014984,2]
[398061471,1765345849312,-500.0,0.00014984,2]
[398061472,1765345849321,-500.0,0.00014984,2]
[398061473,1765345849331,-500.0,0.00014984,2]
[398061474,1765345849340,-586.05221253,0.00014984,2]
[398061475,1765345849349,-500.0,0.00014984,2]
[398061476,1765345849358,-500.0,0.00014984,2]
[398061477,1765345849368,-500.0,0.00014984,2]
[398061478,1765345849378,-500.0,0.00014984,2]
[398061479,1765345849387,-500.0,0.00014984,2]
[398061480,1765345849396,-500.0,0.00014984,2]
[398061481,1765345849406,-500.0,0.00014984,2]
[398061482,1765345849415,-617.34,0.00014984,2]
[398061483,1765345849425,-500.0,0.00014984,2]
[398061484,1765345849434,-500.0,0.00014984,2]
[398061485,1765345849444,-500.0,0.00014984,2]
[398061486,1765345849453,-501.47252794,0.00014984,2]
[398061487,1765345849462,-500.0,0.00014984,2]
[398061488,1765345849471,-2218.11,0.00014984,2]
[398061489,1765345849482,-590.42,0.00014984,2]
[398061490,1765345849492,-500.0,0.00014984,2]
[398061491,1765345849502,-151.0,0.00014984,2]
[398061492,1765345849511,-500.0,0.00014984,2]
[398061493,1765345849521,-500.0,0.00014984,2]
[398061494,1765345849530,-1052.47,0.00014984,2]
[398061495,1765345849539,-500.0,0.00014984,2]
[398061496,1765345849548,-500.37198025,0.00014984,2]
[398061497,1765345849558,-500.0,0.00014984,2]
[398061498,1765345849567,-1419.3,0.00014984,2]
[398061499,1765345849576,-500.0,0.00014984,2]
[398061500,1765345849586,-768.58,0.00014984,2]
[398061501,1765345849595,-500.0,0.00014984,2]
[398061502,1765345849604,-500.0,0.00014984,2]
[398061503,1765345849614,-500.0,0.00014984,2]
[398061504,1765345849623,-500.0,0.00014984,2]
[398061505,1765345849632,-500.0,0.00014984,2]
[398061506,1765345849641,-500.0,0.00014984,2]
[398061507,1765345849651,-687.93,0.00014984,2]
[398061508,1765345849660,-632.89,0.00014984,2]
[398061509,1765345849669,-545.81,0.00014984,2]
[398061510,1765345849678,-500.0,0.00014984,2]
[398061511,1765345849687,-500.0,0.00014984,2]
[398061512,1765345849696,-500.0,0.00014984,2]
[398061513,1765345849706,-510.84487666,0.00014984,2]
[398061514,1765345849715,-500.0,0.00014984,2]
[398061515,1765345849725,-500.0,0.00014984,2]
[398061516,1765345849734,-606.09327458,0.00014984,2]
[398061517,1765345849744,-500.0,0.00014984,2]
[398061518,1765345849753,-964.56,0.00014984,2]
[398061519,1765345849763,-500.0,0.00014984,2]
[398061520,1765345849773,-500.0,0.00014984,2]
[398061521,1765345849782,-500.0,0.00014984,2]
[398061522,1765345849792,-151.0,0.00014984,2]
[398061523,1765345849802,-151.0,0.00014984,2]
[398061524,1765345849811,-151.0,0.00014984,2]
[398061525,1765345849820,-500.0,0.00014984,2]
[398061526,1765345849830,-500.0,0.00014984,2]
[398061527,1765345849839,-500.0,0.00014984,2]
[398061528,1765345849849,-500.0,0.00014984,2]
[398061529,1765345849858,-500.0,0.00014984,2]
[398061530,1765345849867,-624.0,0.00014984,2]
[398061531,1765345849877,-500.0,0.00014984,2]
[398061532,1765345849886,-500.0,0.00014984,2]
[398061533,1765345849895,-509.53,0.00014984,2]
[398061534,1765345849904,-510.40900744,0.00014984,2]
[398061535,1765345849914,-500.0,0.00014984,2]
[398061536,1765345849924,-500.0,0.00014984,2]
[398061537,1765345849933,-500.0,0.00014984,2]
[398061538,1765345849943,-500.0,0.00014984,2]
[398061539,1765345849953,-500.0,0.00014984,2]
[398061540,1765345849963,-500.0,0.00014984,2]
[398061541,1765345849972,-500.0,0.00014984,2]
[398061542,1765345849981,-631.32,0.00014984,2]
[398061543,1765345849991,-586.3,0.00014984,2]
[398061544,1765345850000,-306.74489174,0.00014984,2]
[398061545,1765345850010,-500.0,0.00014984,2]
[398061546,1765345850019,-500.0,0.00014984,2]
[398061547,1765345850028,-500.0,0.00014984,2]
[398061548,1765345850038,-500.0,0.00014984,2]
[398061549,1765345850047,-500.0,0.00014984,2]
[398061550,1765345850057,-500.0,0.00014984,2]
[398061551,1765345850066,-500.0,0.00014984,2]
[398061552,1765345850075,-500.0,0.00014984,2]
[398061553,1765345850084,-500.0,0.00014984,2]
[398061554,1765345850093,-514.56872947,0.00014984,2]
[398061555,1765345850102,-500.0,0.00014984,2]
[398061556,1765345850111,-500.0,0.00014984,2]
[398061557,1765345850120,-500.0,0.00014984,2]
[398061558,1765345850130,-500.0,0.00014984,2]
[398061559,1765345850139,-614.38,0.00014984,2]
[398061560,1765345850148,-500.0,0.00014984,2]
[398061561,1765345850158,-500.0,0.00014984,2]
[398061562,1765345850166,-500.0,0.00014984,2]
[398061563,1765345850176,-622.62,0.00014984,2]
[398061564,1765345850185,-500.0,0.00014984,2]
[398061565,1765345850194,-706.42,0.00014984,2]
[398061566,1765345850203,-500.0,0.00014984,2]
[398061567,1765345850213,-500.0,0.00014984,2]
[398061568,1765345850223,-500.0,0.00014984,2]
[398061569,1765345850232,-678.54,0.00014984,2]
[398061570,1765345850242,-515.54234583,0.00014984,2]
[398061571,1765345850252,-500.0,0.00014984,2]
[398061572,1765345850262,-500.0,0.00014984,2]
[398061573,1765345850270,-500.0,0.00014984,2]
[398061574,1765345850280,-500.0,0.00014984,2]
[398061575,1765345850289,-500.0,0.00014984,2]
[398061576,1765345850298,-500.0,0.00014984,2]
[398061577,1765345850308,-500.0,0.00014984,2]
[398061578,1765345850317,-500.0,0.00014984,2]
[398061579,1765345850326,-500.0,0.00014985,2]
[398061580,1765345850336,-501.19456959,0.00014985,2]
[398061581,1765345850345,-500.0,0.00014985,2]
[398061582,1765345850355,-500.0,0.00014985,2]
[398061583,1765345850364,-500.0,0.00014985,2]
[398061584,1765345850373,-500.0,0.00014985,2]
[398061585,1765345850383,-693.08117626,0.00014985,2]
[398061586,1765345850392,-5679.68819907,0.00014985,2]
[398061587,1765345850402,-500.0,0.00014985,2]
[398061588,1765345850411,-500.0,0.00014985,2]
[398061589,1765345850421,-507.4245446,0.00014985,2]
[398061590,1765345850430,-500.0,0.00014985,2]
[398061591,1765345850440,-500.0,0.00014985,2]
[398061592,1765345850450,-500.0,0.00014985,2]
[398061593,1765345850459,-500.0,0.00014985,2]
[398061594,1765345850469,-500.0,0.00014985,2]
[398061595,1765345850478,-500.0,0.00014985,2]
[398061596,1765345850487,-500.0,0.00014985,2]
[398061597,1765345850497,-500.0,0.00014985,2]
[398061598,1765345850507,-151.0,0.00014985,2]
[398061599,1765345850516,-500.0,0.00014985,2]
[398061600,1765345850525,-500.0,0.00014985,2]
[398061601,1765345850534,-500.0,0.00014985,2]
[398061602,1765345850543,-542.43031296,0.00014985,2]
[398061603,1765345850552,-168.4270638,0.00014985,2]
[398061604,1765345850562,-170.27,0.00015,2]
[398061605,1765345850571,-927.37,0.00015,2]
[398061606,1765345850580,-169.97,0.00015,2]
[398061607,1765345850591,-1006.0,0.00015,2]
[398061608,1765345850600,-166.6,0.00015023,2]
[398061609,1765345850609,-151.0,0.00015039,2]
[398061610,1765345850619,-5198.03817223,0.00015058,2]
[398061611,1765345850628,-1000.0,0.000151,2]
[398061612,1765345850637,-612.0,0.0001512,2]
[398061613,1765345850646,-5282.0,0.00015139,2]
[398061614,1765345850655,-964.0,0.0001515,2]
[398061615,1765345850665,-1504.2440618,0.00015153,2]
[398061616,1765345850674,-500.0,0.00015157,2]
[398061617,1765345850683,-556.20384912,0.00015157,2]
[398061618,1765345850693,-500.0,0.00015157,2]
[398061619,1765345850702,-513.47311178,0.00015157,2]
[398061620,1765345850712,-901.25,0.00015157,2]
[398061621,1765345850722,-500.0,0.00015157,2]
[398061622,1765345850731,-501.99,0.00015157,2]
[398061623,1765345850741,-500.0,0.00015157,2]
[398061624,1765345850750,-500.0,0.00015157,2]
[398061625,1765345850760,-500.0,0.00015157,2]
[398061626,1765345850770,-500.0,0.00015157,2]
[398061627,1765345850779,-500.0,0.00015158,2]
[398061628,1765345850789,-500.0,0.00015158,2]
[398061629,1765345850798,-500.0,0.00015158,2]
[398061630,1765345850808,-500.0,0.00015158,2]
[398061631,1765345850817,-500.0,0.00015158,2]
[398061632,1765345850826,-735.2,0.00015158,2]
[398061633,1765345850836,-500.0,0.00015158,2]
[398061634,1765345850845,-500.0,0.00015158,2]
[398061635,1765345850855,-533.04,0.00015158,2]
[398061636,1765345850864,-500.0,0.00015158,2]
[398061637,1765345850873,-586.77,0.00015158,2]
[398061638,1765345850883,-563.91,0.00015158,2]
[398061639,1765345850892,-622.47,0.00015158,2]
[398061640,1765345850902,-628.81168727,0.00015158,2]
[398061641,1765345850911,-500.0,0.00015158,2]
[398061642,1765345850921,-500.0,0.00015158,2]
[398061643,1765345850931,-500.0,0.00015158,2]
[398061644,1765345850940,-500.0,0.00015158,2]
[398061645,1765345850950,-500.0,0.00015158,2]
[398061646,1765345850959,-500.0,0.00015158,2]
[398061647,1765345850967,-541.51,0.00015158,2]
[398061648,1765345850976,-500.0,0.00015158,2]
[398061649,1765345850986,-500.0,0.00015158,2]
[398061650,1765345850995,-500.0,0.00015158,2]
[398061651,1765345851004,-500.0,0.00015158,2]
[398061652,1765345851014,-500.0,0.00015158,2]
[398061653,1765345851027,-500.0,0.00015158,2]
[398061654,1765345851036,-500.0,0.00015158,2]
[398061655,1765345851046,-500.0,0.00015158,2]
[398061656,1765345851055,-1000.99,0.00015158,2]
[398061657,1765345851066,-500.0,0.00015158,2]
[398061658,1765345851075,-500.0,0.00015158,2]
[398061659,1765345851083,-500.0,0.00015158,2]
[398061660,1765345851093,-500.0,0.00015158,2]
[398061661,1765345851103,-500.0,0.00015158,2]
[398061662,1765345851113,-500.0,0.00015158,2]
[398061663,1765345851122,-641.790329,0.00015158,2]
[398061664,1765345851132,-891.41,0.00015158,2]
[398061665,1765345851141,-500.0,0.00015158,2]
[398061666,1765345851151,-157.87582,0.00015158,2]
[398061667,1765345851160,-725.62,0.00015158,2]
[398061668,1765345851171,-604.37,0.00015158,2]
[398061669,1765345851180,-1660.048152,0.00015158,2]
[398061670,1765345851190,-500.0,0.00015158,2]
[398061671,1765345851199,-1731.234733,0.00015158,2]
[398061672,1765345851209,-195.089803,0.00015158,2]
[398061673,1765345851218,-500.0,0.00015158,2]
[398061674,1765345851229,-500.0,0.00015158,2]
[398061675,1765345851407,-1133.052679,0.00015158,2]
[398061676,1765345851418,-517.47453542,0.00015158,2]
[398061677,1765345851428,-695.26,0.00015158,2]
[398061678,1765345851437,-722.33,0.00015158,2]
[398061679,1765345851446,-531.08,0.00015158,2]
[398061680,1765345851456,-500.0,0.00015158,2]
[398061681,1765345851465,-500.0,0.00015158,2]
[398061682,1765345851475,-512.92,0.00015158,2]
[398061683,1765345851485,-500.0,0.00015158,2]
[398061684,1765345851494,-500.0,0.00015158,2]
[398061685,1765345851504,-500.0,0.00015158,2]
[398061686,1765345851513,-433.45009659,0.00015158,2]
[398061687,1765345851523,-984.69,0.00015158,2]
[398061688,1765345851533,-500.0,0.00015158,2]
[398061689,1765345851543,-500.0,0.00015158,2]
[398061690,1765345851552,-500.0,0.00015158,2]
[398061691,1765345851561,-633.19,0.00015158,2]
[398061692,1765345851571,-504.15216577,0.00015158,2]
[398061693,1765345851580,-500.0,0.00015158,2]
[398061694,1765345851589,-500.0,0.00015158,2]
[398061695,1765345851598,-500.0,0.00015158,2]
[398061696,1765345851608,-513.39,0.00015158,2]
[398061697,1765345851618,-500.0,0.00015158,2]
[398061698,1765345851627,-500.0,0.00015158,2]
[398061699,1765345851637,-500.0,0.00015158,2]
[398061700,1765345851647,-500.68,0.00015158,2]
[398061701,1765345851657,-500.0,0.00015158,2]
[398061702,1765345851667,-500.0,0.00015158,2]
[398061703,1765345851676,-1357.22,0.00015158,2]
[398061704,1765345851687,-500.0,0.00015158,2]
[398061705,1765345851697,-500.0,0.00015158,2]
[398061706,1765345851707,-500.0,0.00015158,2]
[398061707,1765345851716,-500.0,0.00015158,2]
[398061708,1765345851726,-308.35736019,0.00015158,2]
[398061709,1765345851735,-1190.26,0.00015158,2]
[398061710,1765345851745,-580.97,0.00015158,2]
[398061711,1765345851755,-500.0,0.00015158,2]
[398061712,1765345851764,-796.48,0.00015158,2]
[398061713,1765345851774,-500.0,0.00015158,2]
[398061714,1765345851784,-500.0,0.00015158,2]
[398061715,1765345851794,-500.0,0.00015158,2]
[398061716,1765345851803,-539.62,0.00015158,2]
[398061717,1765345851813,-500.0,0.00015158,2]
[398061718,1765345851822,-500.0,0.00015158,2]
[398061719,1765345851832,-531.70653325,0.00015158,2]
[398061720,1765345851842,-500.0,0.00015158,2]
[398061721,1765345851852,-500.0,0.00015158,2]
[398061722,1765345851862,-500.0,0.00015158,2]
[398061723,1765345851876,-500.0,0.00015158,2]
[398061724,1765345851886,-500.0,0.00015158,2]
[398061725,1765345851895,-500.0,0.00015158,2]
[398061726,1765345851905,-500.0,0.00015158,2]
[398061727,1765345851915,-1264.96,0.00015158,2]
[398061728,1765345851925,-500.0,0.00015158,2]
[398061729,1765345851944,-492.1222839,0.00015158,2]
[398061730,1765345851955,-500.0,0.00015158,2]
[398061731,1765345851965,-500.0,0.00015158,2]
[398061732,1765345851975,-500.0,0.00015158,2]
[398061733,1765345851985,-500.0,0.00015158,2]
[398061734,1765345851995,-500.0,0.00015158,2]
[398061735,1765345852004,-500.0,0.00015158,2]
[398061736,1765345852014,-915.35,0.00015158,2]
[398061737,1765345852029,-500.0,0.00015158,2]
[398061738,1765345852049,-544.59711661,0.00015158,2]
[398061739,1765345852059,-500.0,0.00015158,2]
[398061740,1765345852069,-500.0,0.00015158,2]
[398061741,1765345852079,-500.0,0.00015158,2]
[398061742,1765345852089,-365.80790819,0.00015158,2]
[398061743,1765345852620,-134.19209181,0.00015158,2]
[398061744,1765345852630,-673.89,0.00015158,2]
[398061745,1765345852639,-500.0,0.00015158,2]
[398061746,1765345852648,-500.0,0.00015158,2]
[398061747,1765345852657,-528.03911327,0.00015158,2]
[398061748,1765345852667,-500.0,0.00015158,2]
[398061749,1765345852676,-500.0,0.00015158,2]
[398061750,1765345852685,-762.0,0.00015158,2]
[398061751,1765345852695,-500.0,0.00015158,2]
[398061752,1765345852704,-3256.23,0.00015158,2]
[398061753,1765345852714,-500.0,0.00015158,2]
[398061754,1765345852723,-500.0,0.00015158,2]
[398061755,1765345852733,-500.0,0.00015158,2]
[398061756,1765345852742,-500.0,0.00015158,2]
[398061757,1765345852752,-727.41,0.00015158,2]
[398061758,1765345852761,-500.0,0.00015158,2]
[398061759,1765345852771,-500.0,0.00015158,2]
[398061760,1765345852780,-500.0,0.00015158,2]
[398061761,1765345852789,-892.61,0.00015158,2]
[398061762,1765345852799,-1071.96,0.00015158,2]
[398061763,1765345852808,-500.0,0.00015158,2]
[398061764,1765345852817,-500.0,0.00015158,2]
[398061765,1765345852826,-174.63714777,0.00015158,2]
[398061766,1765345852836,-1775.39,0.00015158,2]
[398061767,1765345852845,-500.0,0.00015158,2]
[398061768,1765345852854,-278.04,0.00015158,2]
[398061769,1765345852864,-500.0,0.00015158,2]
[398061770,1765345852873,-500.0,0.00015158,2]
[398061771,1765345852882,-500.0,0.00015158,2]
[398061772,1765345852892,-520.58,0.00015158,2]
[398061773,1765345852901,-500.0,0.00015158,2]
[398061774,1765345852911,-500.0,0.00015158,2]
[398061775,1765345852921,-500.0,0.00015158,2]
[398061776,1765345852930,-739.15,0.00015158,2]
[398061777,1765345852939,-500.0,0.00015158,2]
[398061778,1765345852949,-722.91,0.00015158,2]
[398061779,1765345852959,-500.0,0.00015158,2]
[398061780,1765345852968,-506.02327253,0.00015158,2]
[398061781,1765345852977,-500.0,0.00015158,2]
[398061782,1765345852986,-500.0,0.00015158,2]
[398061783,1765345852996,-500.0,0.00015158,2]
[398061784,1765345853005,-500.0,0.00015158,2]
[398061785,1765345853016,-500.0,0.00015158,2]
[398061786,1765345853035,-500.0,0.00015158,2]
[398061787,1765345853045,-500.0,0.00015158,2]
[398061788,1765345853054,-500.0,0.00015158,2]
[398061789,1765345853064,-500.0,0.00015158,2]
[398061790,1765345853074,-500.0,0.00015158,2]
[398061791,1765345853083,-500.0,0.00015158,2]
[398061792,1765345853093,-500.0,0.00015158,2]
[398061793,1765345853103,-500.0,0.00015158,2]
[398061794,1765345853113,-654.63,0.00015158,2]
[398061795,1765345853122,-500.0,0.00015158,2]
[398061796,1765345853133,-500.0,0.00015158,2]
[398061797,1765345853143,-500.0,0.00015158,2]
[398061798,1765345853151,-500.0,0.00015158,2]
[398061799,1765345853161,-514.9,0.00015158,2]
[398061800,1765345853171,-547.98,0.00015158,2]
[398061801,1765345853387,-500.0,0.00015158,2]
[398061802,1765345853398,-226.95963509,0.00015158,2]
[398061803,1765345853408,-500.0,0.00015158,2]
[398061804,1765345853418,-500.0,0.00015158,2]
[398061805,1765345853428,-500.0,0.00015158,2]
[398061806,1765345853439,-500.0,0.00015158,2]
[398061807,1765345853449,-500.0,0.00015158,2]
[398061808,1765345853459,-500.0,0.00015158,2]
[398061809,1765345853470,-545.66420331,0.00015158,2]
[398061810,1765345853480,-500.0,0.00015158,2]
[398061811,1765345853489,-504.91236208,0.00015158,2]
[398061812,1765345853499,-500.0,0.00015158,2]
[398061813,1765345853509,-500.0,0.00015158,2]
[398061814,1765345853519,-500.0,0.00015158,2]
[398061815,1765345853529,-500.0,0.00015158,2]
[398061816,1765345853538,-562.52,0.00015158,2]
[398061817,1765345853548,-500.0,0.00015158,2]
[398061818,1765345853558,-701.29,0.00015158,2]
[398061819,1765345853567,-500.0,0.00015158,2]
[398061820,1765345853577,-500.0,0.00015158,2]
[398061821,1765345853587,-644.64,0.00015158,2]
[398061822,1765345853597,-569.14,0.00015158,2]
[398061823,1765345853607,-500.0,0.00015158,2]
[398061824,1765345853616,-505.8,0.00015158,2]
[398061825,1765345853627,-1354.18,0.00015158,2]
[398061826,1765345853637,-500.0,0.00015158,2]
[398061827,1765345853647,-500.0,0.00015158,2]
[398061828,1765345853656,-500.0,0.00015158,2]
[398061829,1765345853666,-637.74,0.00015158,2]
[398061830,1765345853676,-500.0,0.00015158,2]
[398061831,1765345853686,-500.0,0.00015158,2]
[398061832,1765345853695,-858.36,0.00015158,2]
[398061833,1765345853705,-500.0,0.00015158,2]
[398061834,1765345853714,-756.44,0.00015158,2]
[398061835,1765345853724,-500.0,0.00015158,2]
[398061836,1765345853734,-657.93,0.00015158,2]
[398061837,1765345853743,-500.0,0.00015158,2]
[398061838,1765345853752,-500.0,0.00015158,2]
[398061839,1765345853762,-1078.84,0.00015158,2]
[398061840,1765345853771,-151.0,0.00015158,2]
[398061841,1765345853781,-1269.26,0.00015158,2]
[398061842,1765345853791,-151.0,0.00015158,2]
[398061843,1765345853800,-500.0,0.00015158,2]
[398061844,1765345853810,-500.0,0.00015158,2]
[398061845,1765345853820,-500.0,0.00015158,2]
[398061846,1765345853829,-723.0,0.00015158,2]
[398061847,1765345853839,-500.0,0.00015158,2]
[398061848,1765345853848,-500.0,0.00015158,2]
[398061849,1765345853858,-500.0,0.00015158,2]
[398061850,1765345853867,-500.0,0.00015158,2]
[398061851,1765345853877,-683.72,0.00015158,2]
[398061852,1765345853886,-500.0,0.00015158,2]
[398061853,1765345853895,-500.0,0.00015158,2]
[398061854,1765345853905,-500.0,0.00015158,2]
[398061855,1765345853915,-454.15885238,0.00015158,2]
[398061856,1765345853924,-500.0,0.00015158,2]
[398061857,1765345853934,-606.04,0.00015158,2]
[398061858,1765345853944,-724.68,0.00015158,2]
[398061859,1765345853953,-500.0,0.00015158,2]
[398061860,1765345853963,-500.0,0.00015158,2]
[398061861,1765345853972,-500.0,0.00015158,2]
[398061862,1765345853982,-1311.34,0.00015158,2]
[398061863,1765345853991,-500.0,0.00015158,2]
[398061864,1765345854000,-500.0,0.00015158,2]
[398061865,1765345854010,-500.0,0.00015158,2]
[398061866,1765345854019,-1489.55,0.00015158,2]
[398061867,1765345854029,-500.0,0.00015158,2]
[398061868,1765345854038,-4529.84,0.00015158,2]
[398061869,1765345854047,-500.0,0.00015158,2]
[398061870,1765345854057,-500.0,0.00015158,2]
[398061871,1765345854067,-500.0,0.00015158,2]
[398061872,1765345854077,-647.66,0.00015158,2]
[398061873,1765345854086,-363.97359885,0.00015158,2]
[398061874,1765345854097,-500.0,0.00015158,2]
[398061875,1765345854106,-500.0,0.00015158,2]
[398061876,1765345854115,-610.86993164,0.00015158,2]
[398061877,1765345854125,-500.0,0.00015158,2]
[398061878,1765345854135,-559.54,0.00015158,2]
[398061879,1765345854144,-500.0,0.00015158,2]
[398061880,1765345854153,-500.0,0.00015158,2]
[398061881,1765345854163,-394.69901788,0.00015158,2]
[398061882,1765345854172,-662.84,0.00015158,2]
[398061883,1765345854182,-500.0,0.00015158,2]
[398061884,1765345854191,-782.95,0.00015158,2]
[398061885,1765345854200,-500.0,0.00015158,2]
[398061886,1765345854209,-500.0,0.00015158,2]
[398061887,1765345854219,-505.8,0.00015158,2]
[398061888,1765345854228,-621.45,0.00015158,2]
[398061889,1765345854237,-500.0,0.00015158,2]
[398061890,1765345854246,-500.0,0.00015158,2]
[398061891,1765345854256,-500.0,0.00015158,2]
[398061892,1765345854265,-2732.48,0.00015158,2]
[398061893,1765345854275,-631.73,0.00015158,2]
[398061894,1765345854284,-500.0,0.00015158,2]
[398061895,1765345854293,-500.0,0.00015158,2]
[398061896,1765345854303,-500.0,0.00015158,2]
[398061897,1765345854312,-322.68392465,0.00015158,2]
[398061898,1765345854322,-552.37,0.00015158,2]
[398061899,1765345854332,-500.0,0.00015158,2]
[398061900,1765345854341,-500.0,0.00015158,2]
[398061901,1765345854350,-500.0,0.00015158,2]
[398061902,1765345854359,-814.86,0.00015158,2]
[398061903,1765345854368,-500.0,0.00015158,2]
[398061904,1765345854377,-500.0,0.00015158,2]
[398061905,1765345854386,-628.58,0.00015158,2]
[398061906,1765345854395,-1098.67,0.00015158,2]
[398061907,1765345854405,-604.34,0.00015158,2]
[398061908,1765345854416,-500.0,0.00015158,2]
[398061909,1765345854425,-500.0,0.00015158,2]
[398061910,1765345854434,-500.0,0.00015158,2]
[398061911,1765345854443,-570.09,0.00015158,2]
[398061912,1765345854452,-500.0,0.00015158,2]
[398061913,1765345854461,-615.61,0.00015158,2]
[398061914,1765345854471,-702.06,0.00015158,2]
[398061915,1765345854480,-500.0,0.00015158,2]
[398061916,1765345854493,-622.09,0.00015158,2]
[398061917,1765345854513,-500.0,0.00015158,2]
[398061918,1765345854529,-500.0,0.00015158,2]
[398061919,1765345854548,-521.75,0.00015158,2]
[398061920,1765345854567,-500.0,0.00015158,2]
[398061921,1765345854581,-500.0,0.00015158,2]
[398061922,1765345854599,-544.53,0.00015158,2]
[398061923,1765345854616,-516.89,0.00015158,2]
[398061924,1765345854636,-500.0,0.00015158,2]
[398061925,1765345854656,-500.0,0.00015158,2]
[398061926,1765345854673,-1066.44,0.00015158,2]
[398061927,1765345854692,-899.91,0.00015158,2]
[398061928,1765345854708,-500.0,0.00015158,2]
[398061929,1765345854722,-500.0,0.00015158,2]
[398061930,1765345854738,-600.13,0.00015158,2]
[398061931,1765345854752,-712.34,0.00015158,2]
[398061932,1765345854766,-626.82,0.00015158,2]
[398061933,1765345854781,-500.0,0.00015158,2]
[398061934,1765345854794,-536.34,0.00015158,2]
[398061935,1765345854808,-500.0,0.00015158,2]
[398061936,1765345854821,-500.0,0.00015158,2]
[398061937,1765345854840,-500.0,0.00015158,2]
[398061938,1765345854853,-682.45,0.00015158,2]
[398061939,1765345854866,-834.33,0.00015158,2]
[398061940,1765345854881,-500.0,0.00015158,2]
[398061941,1765345854895,-500.0,0.00015158,2]
[398061942,1765345854910,-289.23512304,0.00015158,2]
[398061943,1765345854923,-500.0,0.00015158,2]
[398061944,1765345854937,-782.26,0.00015158,2]